[Event "Early-Titled-Tuesday-Blitz-October-24-2023"]
[Site "Chess.com"]
[Date "2023.10.24"]
[Round "4"]
[White "WFM_Sara_Adel"]
[Black "NovikovaGalina"]
[Result "0-1"]
[WhiteElo "2182"]
[BlackElo "2440"]
[TimeControl "180+1"]
[EndTime "8:37:13 PDT"]
[Termination "NovikovaGalina won by resignation"]

1. e4 {[%clk 0:03:00.9]} 1... e5 {[%clk 0:02:59.3]} 2. Nf3 {[%clk 0:03:00.5]}
2... Nc6 {[%clk 0:02:59.8]} 3. Bc4 {[%clk 0:03:00.4]} 3... Nf6 {[%clk
0:02:59.5]} 4. Ng5 {[%clk 0:03:00.2]} 4... d5 {[%clk 0:02:56.7]} 5. exd5 {[%clk
0:03:01.1]} 5... b5 {[%clk 0:02:56.2]} 6. Bxb5 {[%clk 0:02:57]} 6... Qxd5 {[%clk
0:02:54.8]} 7. Bxc6+ {[%clk 0:02:55.2]} 7... Qxc6 {[%clk 0:02:54.6]} 8. O-O
{[%clk 0:02:56.1]} 8... h6 {[%clk 0:02:51]} 9. Nf3 {[%clk 0:02:53.2]} 9... Bg4
{[%clk 0:02:50.6]} 10. Nxe5 {[%clk 0:02:50.9]} 10... Bxd1 {[%clk 0:02:41.8]} 11.
Nxc6 {[%clk 0:02:46.9]} 11... Bxc2 {[%clk 0:02:37.9]} 12. Re1+ {[%clk
0:02:47.5]} 12... Kd7 {[%clk 0:02:33.8]} 13. Ne5+ {[%clk 0:02:48.1]} 13... Kc8
{[%clk 0:02:32.8]} 14. Nxf7 {[%clk 0:02:38.1]} 14... Rg8 {[%clk 0:02:32.9]} 15.
Nc3 {[%clk 0:02:33.3]} 15... Bc5 {[%clk 0:02:23.7]} 16. d4 {[%clk 0:02:26.9]}
16... Bxd4 {[%clk 0:02:22.2]} 17. Nb5 {[%clk 0:02:26.9]} 17... Bb6 {[%clk
0:02:17.2]} 18. Bf4 {[%clk 0:02:24.7]} 18... Rf8 {[%clk 0:02:11.2]} 19. Re7
{[%clk 0:02:15.7]} 19... Nd5 {[%clk 0:01:59.3]} 20. Rc1 {[%clk 0:01:42.6]} 20...
Nxe7 {[%clk 0:01:54.1]} 21. Rxc2 {[%clk 0:01:42.3]} 21... Kb7 {[%clk 0:01:34]}
22. Bxc7 {[%clk 0:01:14.9]} 22... Bxc7 {[%clk 0:01:18.9]} 23. Rxc7+ {[%clk
0:01:07.4]} 23... Kb6 {[%clk 0:01:19.5]} 24. Nfd6 {[%clk 0:00:19.4]} 24... a6
{[%clk 0:01:10.5]} 25. Rb7+ {[%clk 0:00:19.2]} 25... Kc6 {[%clk 0:01:04.4]} 26.
Rxe7 {[%clk 0:00:19.5]} 26... axb5 {[%clk 0:01:03.9]} 27. Ne4 {[%clk 0:00:18.5]}
27... Rxa2 {[%clk 0:01:02.6]} 28. g3 {[%clk 0:00:17.1]} 28... Rxb2 {[%clk
0:00:53.1]} 29. Re5 {[%clk 0:00:17.8]} 29... b4 {[%clk 0:00:50.3]} 30. Rc5+
{[%clk 0:00:17.9]} 30... Kb6 {[%clk 0:00:48.6]} 31. Rd5 {[%clk 0:00:18]} 31...
Rb1+ {[%clk 0:00:48.9]} 32. Kg2 {[%clk 0:00:18.1]} 32... b3 {[%clk 0:00:49.2]}
33. Rd6+ {[%clk 0:00:17.9]} 33... Kc7 {[%clk 0:00:47.8]} 34. Rd3 {[%clk
0:00:16.8]} 34... b2 {[%clk 0:00:48.1]} 35. Rb3 {[%clk 0:00:17.3]} 35... Rb8
{[%clk 0:00:45.4]} 36. Rc3+ {[%clk 0:00:17.1]} 36... Kd8 {[%clk 0:00:42.9]} 37.
Nd2 {[%clk 0:00:17.1]} 37... Rd1 {[%clk 0:00:42.5]} 38. Rd3+ {[%clk 0:00:17]}
38... Ke8 {[%clk 0:00:42.7]} 39. Re3+ {[%clk 0:00:17.4]} 39... Kf8 {[%clk
0:00:42.9]} 40. Rf3+ {[%clk 0:00:17.7]} 40... Kg8 {[%clk 0:00:42.7]} 0-1

[Event "Early-Titled-Tuesday-Blitz-October-24-2023"]
[Site "Chess.com"]
[Date "2023.10.24"]
[Round "4"]
[White "Boninknights"]
[Black "JG-17"]
[Result "1-0"]
[WhiteElo "2302"]
[BlackElo "2469"]
[TimeControl "180+1"]
[EndTime "8:37:14 PDT"]
[Termination "Boninknights won by resignation"]

1. d4 {[%clk 0:03:00.9]} 1... d5 {[%clk 0:02:53.3]} 2. Nf3 {[%clk 0:02:59.7]}
2... Nf6 {[%clk 0:02:53.5]} 3. c4 {[%clk 0:02:59]} 3... e6 {[%clk 0:02:52.4]} 4.
Nc3 {[%clk 0:02:58]} 4... Be7 {[%clk 0:02:49.8]} 5. Bg5 {[%clk 0:02:57.2]} 5...
O-O {[%clk 0:02:48.8]} 6. e3 {[%clk 0:02:57.1]} 6... h6 {[%clk 0:02:47.6]} 7.
Bh4 {[%clk 0:02:55.1]} 7... b6 {[%clk 0:02:46.8]} 8. Rc1 {[%clk 0:02:53.5]} 8...
Bb7 {[%clk 0:02:47.2]} 9. Bxf6 {[%clk 0:02:52.2]} 9... Bxf6 {[%clk 0:02:47.3]}
10. cxd5 {[%clk 0:02:51.9]} 10... exd5 {[%clk 0:02:47.8]} 11. b4 {[%clk
0:02:51.7]} 11... c6 {[%clk 0:02:45.6]} 12. Qb3 {[%clk 0:02:49.3]} 12... b5
{[%clk 0:02:43.4]} 13. a4 {[%clk 0:02:45]} 13... a6 {[%clk 0:02:43.3]} 14. Be2
{[%clk 0:02:43.7]} 14... Nd7 {[%clk 0:02:43.1]} 15. O-O {[%clk 0:02:39.7]} 15...
Nb6 {[%clk 0:02:43.1]} 16. Rfd1 {[%clk 0:02:38]} 16... Nc4 {[%clk 0:02:39.7]}
17. e4 {[%clk 0:02:33.9]} 17... Bg5 {[%clk 0:02:28.9]} 18. Nxg5 {[%clk
0:02:28.5]} 18... Qxg5 {[%clk 0:02:29.8]} 19. exd5 {[%clk 0:02:26.7]} 19... cxd5
{[%clk 0:01:54.5]} 20. axb5 {[%clk 0:02:18.1]} 20... axb5 {[%clk 0:01:43.1]} 21.
Nxb5 {[%clk 0:02:17.4]} 21... Bc6 {[%clk 0:01:43.6]} 22. Nc3 {[%clk 0:02:12.5]}
22... Ra3 {[%clk 0:01:42.2]} 23. Qc2 {[%clk 0:02:09.4]} 23... Rfa8 {[%clk
0:01:37.8]} 24. Bxc4 {[%clk 0:02:01.1]} 24... dxc4 {[%clk 0:01:36.8]} 25. d5
{[%clk 0:01:59.7]} 25... Bd7 {[%clk 0:01:33.5]} 26. Qe4 {[%clk 0:01:54.9]} 26...
Rc8 {[%clk 0:01:08]} 27. h4 {[%clk 0:01:50]} 27... Qf6 {[%clk 0:01:03.6]} 28.
Qd4 {[%clk 0:01:46.7]} 28... Qd6 {[%clk 0:00:57.1]} 29. Rb1 {[%clk 0:01:36.7]}
29... Bf5 {[%clk 0:00:54.6]} 30. Rb2 {[%clk 0:01:34.6]} 30... Bd3 {[%clk
0:00:48.6]} 31. Nb5 {[%clk 0:01:31.6]} 31... Qa6 {[%clk 0:00:41.7]} 32. Nxa3
{[%clk 0:01:29.3]} 32... Qxa3 {[%clk 0:00:42.6]} 33. Rbd2 {[%clk 0:01:27.6]}
33... Bg6 {[%clk 0:00:36.9]} 34. d6 {[%clk 0:01:21.4]} 34... c3 {[%clk
0:00:34.9]} 35. d7 {[%clk 0:01:19.1]} 35... Rd8 {[%clk 0:00:35.3]} 36. Re2
{[%clk 0:01:15.4]} 36... c2 {[%clk 0:00:12.4]} 37. Re8+ {[%clk 0:01:07.4]} 37...
Kh7 {[%clk 0:00:12.8]} 38. Rxd8 {[%clk 0:01:07.1]} 38... Qc3 {[%clk 0:00:04.5]}
39. Rh8+ {[%clk 0:00:58.7]} 39... Kxh8 {[%clk 0:00:05.4]} 40. d8=Q+ {[%clk
0:00:56.9]} 40... Kh7 {[%clk 0:00:05.6]} 41. Qxc3 {[%clk 0:00:56.8]} 41...
cxd1=Q+ {[%clk 0:00:05.8]} 42. Qxd1 {[%clk 0:00:56]} 1-0

[Event "Early-Titled-Tuesday-Blitz-October-24-2023"]
[Site "Chess.com"]
[Date "2023.10.24"]
[Round "4"]
[White "pinguino120"]
[Black "stasOR4ik"]
[Result "1-0"]
[WhiteElo "2198"]
[BlackElo "2379"]
[TimeControl "180+1"]
[EndTime "8:37:15 PDT"]
[Termination "pinguino120 won on time"]

1. e4 {[%clk 0:03:00.9]} 1... c6 {[%clk 0:03:00]} 2. d4 {[%clk 0:03:00]} 2... d5
{[%clk 0:03:00.9]} 3. e5 {[%clk 0:03:00.6]} 3... c5 {[%clk 0:03:01.3]} 4. c3
{[%clk 0:03:00]} 4... Nc6 {[%clk 0:03:00.2]} 5. Be2 {[%clk 0:03:00.4]} 5... Bf5
{[%clk 0:03:00.4]} 6. g4 {[%clk 0:02:48.3]} 6... Be4 {[%clk 0:02:58.2]} 7. f3
{[%clk 0:02:45.6]} 7... Bxb1 {[%clk 0:02:55.2]} 8. Rxb1 {[%clk 0:02:44.7]} 8...
cxd4 {[%clk 0:02:54.7]} 9. cxd4 {[%clk 0:02:44.8]} 9... e6 {[%clk 0:02:45.8]}
10. f4 {[%clk 0:02:42.3]} 10... Qa5+ {[%clk 0:02:28.4]} 11. Bd2 {[%clk
0:02:31.5]} 11... Qxa2 {[%clk 0:02:26.1]} 12. Nf3 {[%clk 0:02:29.1]} 12... Bb4
{[%clk 0:02:21.2]} 13. O-O {[%clk 0:02:25.2]} 13... Qa5 {[%clk 0:02:13.1]} 14.
Bxb4 {[%clk 0:02:03.1]} 14... Qxb4 {[%clk 0:02:11.9]} 15. Qd3 {[%clk 0:02:02]}
15... Nge7 {[%clk 0:02:09.2]} 16. f5 {[%clk 0:02:00]} 16... O-O {[%clk
0:01:51.5]} 17. f6 {[%clk 0:01:57.1]} 17... Ng6 {[%clk 0:01:50.8]} 18. Qe3
{[%clk 0:01:50.9]} 18... Rfc8 {[%clk 0:00:57]} 19. h4 {[%clk 0:01:44.7]} 19...
Nxd4 {[%clk 0:00:20.4]} 20. Nxd4 {[%clk 0:01:37.7]} 20... Nxh4 {[%clk
0:00:20.3]} 21. Rbd1 {[%clk 0:01:31]} 21... Qxb2 {[%clk 0:00:17]} 22. Qg5 {[%clk
0:01:25.6]} 22... Ng6 {[%clk 0:00:14.7]} 23. fxg7 {[%clk 0:01:21.8]} 23... Rc3
{[%clk 0:00:13.8]} 24. Qf6 {[%clk 0:01:11.7]} 24... Rc7 {[%clk 0:00:13.9]} 25.
g5 {[%clk 0:00:46.7]} 25... a5 {[%clk 0:00:13.8]} 26. Bh5 {[%clk 0:00:46.5]}
26... a4 {[%clk 0:00:09.7]} 27. Bxg6 {[%clk 0:00:46.2]} 27... hxg6 {[%clk
0:00:09.1]} 28. Nxe6 {[%clk 0:00:41.4]} 28... Qb6+ {[%clk 0:00:04.3]} 29. Nd4
{[%clk 0:00:32.8]} 29... Qxf6 {[%clk 0:00:04.7]} 30. gxf6 {[%clk 0:00:32.7]}
30... a3 {[%clk 0:00:04.1]} 31. Kf2 {[%clk 0:00:33]} 31... a2 {[%clk 0:00:03.4]}
32. Rh1 {[%clk 0:00:33.6]} 1-0

[Event "Early-Titled-Tuesday-Blitz-October-24-2023"]
[Site "Chess.com"]
[Date "2023.10.24"]
[Round "4"]
[White "chessfatbear"]
[Black "Grischuk"]
[Result "0-1"]
[WhiteElo "2806"]
[BlackElo "2992"]
[TimeControl "180+1"]
[EndTime "8:37:18 PDT"]
[Termination "Grischuk won on time"]

1. Nf3 {[%clk 0:03:00.9]} 1... d5 {[%clk 0:02:57]} 2. d4 {[%clk 0:03:00.3]} 2...
Nf6 {[%clk 0:02:56.4]} 3. Bf4 {[%clk 0:02:59.5]} 3... c5 {[%clk 0:02:53.9]} 4.
e3 {[%clk 0:02:59.1]} 4... Nc6 {[%clk 0:02:53.2]} 5. Nbd2 {[%clk 0:02:58.4]}
5... Qb6 {[%clk 0:02:52.5]} 6. dxc5 {[%clk 0:02:43.3]} 6... Qxb2 {[%clk
0:02:52.4]} 7. Rb1 {[%clk 0:02:30.1]} 7... Qc3 {[%clk 0:02:52]} 8. Bb5 {[%clk
0:02:28.4]} 8... g6 {[%clk 0:02:50.8]} 9. Ne5 {[%clk 0:02:17]} 9... Bd7 {[%clk
0:02:23.3]} 10. Bxc6 {[%clk 0:02:05.4]} 10... Bxc6 {[%clk 0:02:22.2]} 11. O-O
{[%clk 0:02:03.2]} 11... Bg7 {[%clk 0:02:16.6]} 12. Nd3 {[%clk 0:01:51.7]} 12...
Ne4 {[%clk 0:01:53.6]} 13. Nb3 {[%clk 0:01:10.3]} 13... g5 {[%clk 0:01:43.7]}
14. Bc7 {[%clk 0:01:04.7]} 14... Rc8 {[%clk 0:01:31]} 15. Ba5 {[%clk 0:01:00]}
15... Qc4 {[%clk 0:01:25.8]} 16. Nd4 {[%clk 0:00:45.6]} 16... Bxd4 {[%clk
0:01:03.5]} 17. exd4 {[%clk 0:00:45.8]} 17... Qxd4 {[%clk 0:01:03.3]} 18. Qe1
{[%clk 0:00:40.1]} 18... O-O {[%clk 0:00:53.7]} 19. Kh1 {[%clk 0:00:40.6]} 19...
Rce8 {[%clk 0:00:44]} 20. f3 {[%clk 0:00:40.5]} 20... Nxc5 {[%clk 0:00:43.4]}
21. Ne5 {[%clk 0:00:09.4]} 21... Qf4 {[%clk 0:00:43.1]} 22. Bd2 {[%clk 0:00:09]}
22... Qf5 {[%clk 0:00:42.5]} 23. Rb4 {[%clk 0:00:05.7]} 23... f6 {[%clk
0:00:39]} 24. Ng4 {[%clk 0:00:02.2]} 24... Qxc2 {[%clk 0:00:38.2]} 25. Rb1
{[%clk 0:00:01.1]} 25... h5 {[%clk 0:00:31.3]} 26. Rc1 {[%clk 0:00:01.2]} 26...
Qg6 {[%clk 0:00:29.8]} 0-1

[Event "Early-Titled-Tuesday-Blitz-October-24-2023"]
[Site "Chess.com"]
[Date "2023.10.24"]
[Round "4"]
[White "OPQRC"]
[Black "vedantgoswami"]
[Result "1-0"]
[WhiteElo "2582"]
[BlackElo "2372"]
[TimeControl "180+1"]
[EndTime "8:37:19 PDT"]
[Termination "OPQRC won on time"]

1. e4 {[%clk 0:03:00.9]} 1... e5 {[%clk 0:02:56.7]} 2. Nc3 {[%clk 0:02:59.4]}
2... Bb4 {[%clk 0:02:54.1]} 3. Nf3 {[%clk 0:03:00.3]} 3... Bxc3 {[%clk
0:02:52.3]} 4. dxc3 {[%clk 0:03:00.1]} 4... d6 {[%clk 0:02:52]} 5. Bc4 {[%clk
0:02:57.3]} 5... Nf6 {[%clk 0:02:50.3]} 6. Qe2 {[%clk 0:02:51.1]} 6... h6 {[%clk
0:02:41.4]} 7. Be3 {[%clk 0:02:50.1]} 7... Nc6 {[%clk 0:02:36.5]} 8. O-O-O
{[%clk 0:02:48.1]} 8... Qe7 {[%clk 0:02:35]} 9. Bd2 {[%clk 0:02:39.8]} 9... a6
{[%clk 0:02:29.3]} 10. Kb1 {[%clk 0:02:36.8]} 10... Be6 {[%clk 0:02:26.9]} 11.
h3 {[%clk 0:02:31.5]} 11... O-O-O {[%clk 0:02:23.1]} 12. Nh4 {[%clk 0:02:18.9]}
12... Bxc4 {[%clk 0:02:13.9]} 13. Qxc4 {[%clk 0:02:17.9]} 13... g6 {[%clk
0:02:11.7]} 14. Nf3 {[%clk 0:02:12.7]} 14... g5 {[%clk 0:01:51.1]} 15. Rhe1
{[%clk 0:02:08.2]} 15... Qe6 {[%clk 0:01:49]} 16. Qd3 {[%clk 0:02:04.9]} 16...
Rhe8 {[%clk 0:01:35.3]} 17. Nh2 {[%clk 0:02:00]} 17... d5 {[%clk 0:01:24.1]} 18.
exd5 {[%clk 0:01:57.3]} 18... Rxd5 {[%clk 0:01:23.8]} 19. Qe2 {[%clk 0:01:56.4]}
19... Red8 {[%clk 0:01:21.8]} 20. Bc1 {[%clk 0:01:55.3]} 20... Qf5 {[%clk
0:01:13.5]} 21. Rxd5 {[%clk 0:01:43.8]} 21... Rxd5 {[%clk 0:01:11]} 22. Nf1
{[%clk 0:01:43.2]} 22... Rd8 {[%clk 0:01:03.4]} 23. Ne3 {[%clk 0:01:42.5]} 23...
Qe6 {[%clk 0:01:00]} 24. Nc4 {[%clk 0:01:32.6]} 24... e4 {[%clk 0:00:55.7]} 25.
b3 {[%clk 0:01:26.6]} 25... Re8 {[%clk 0:00:49.9]} 26. Bb2 {[%clk 0:01:13.3]}
26... Nd5 {[%clk 0:00:48.1]} 27. Ne3 {[%clk 0:01:12.6]} 27... f5 {[%clk
0:00:46.7]} 28. Nxd5 {[%clk 0:01:08.1]} 28... Qxd5 {[%clk 0:00:46.5]} 29. c4
{[%clk 0:01:07.2]} 29... Qe6 {[%clk 0:00:45.1]} 30. Qh5 {[%clk 0:01:04.5]} 30...
Kb8 {[%clk 0:00:42.3]} 31. Bg7 {[%clk 0:00:54]} 31... f4 {[%clk 0:00:14.2]} 32.
Qxh6 {[%clk 0:00:45.1]} 32... Qf5 {[%clk 0:00:14.1]} 33. Qf6 {[%clk 0:00:37.7]}
33... Qxf6 {[%clk 0:00:11.3]} 34. Bxf6 {[%clk 0:00:38.6]} 1-0

[Event "Early-Titled-Tuesday-Blitz-October-24-2023"]
[Site "Chess.com"]
[Date "2023.10.24"]
[Round "4"]
[White "Nf3c5"]
[Black "CraiggoryC"]
[Result "1-0"]
[WhiteElo "2621"]
[BlackElo "2220"]
[TimeControl "180+1"]
[EndTime "8:37:20 PDT"]
[Termination "Nf3c5 won on time"]

1. d4 {[%clk 0:03:00.9]} 1... Nf6 {[%clk 0:02:59.5]} 2. Nf3 {[%clk 0:02:57.5]}
2... e6 {[%clk 0:02:55]} 3. Bg5 {[%clk 0:02:56.5]} 3... c5 {[%clk 0:02:52.3]} 4.
Nc3 {[%clk 0:02:42.3]} 4... cxd4 {[%clk 0:02:43.2]} 5. Qxd4 {[%clk 0:02:40.2]}
5... Nc6 {[%clk 0:02:41.9]} 6. Qh4 {[%clk 0:02:40.1]} 6... Be7 {[%clk
0:02:41.3]} 7. e4 {[%clk 0:02:38.1]} 7... d6 {[%clk 0:02:27.8]} 8. O-O-O {[%clk
0:02:37.3]} 8... Qa5 {[%clk 0:02:24]} 9. Nd2 {[%clk 0:02:24.5]} 9... h6 {[%clk
0:02:15.5]} 10. f4 {[%clk 0:02:20.9]} 10... O-O {[%clk 0:02:11]} 11. Nc4 {[%clk
0:02:02.9]} 11... hxg5 {[%clk 0:02:02.1]} 12. fxg5 {[%clk 0:01:56]} 12... Nh7
{[%clk 0:01:24.5]} 13. Nxa5 {[%clk 0:01:23.4]} 13... Bxg5+ {[%clk 0:01:24.1]}
14. Qxg5 {[%clk 0:01:24]} 14... Nxg5 {[%clk 0:01:23.8]} 15. Nxc6 {[%clk
0:01:24.6]} 15... bxc6 {[%clk 0:01:23.8]} 16. Rxd6 {[%clk 0:01:25.2]} 16... Bb7
{[%clk 0:01:06.7]} 17. h4 {[%clk 0:00:57.8]} 17... Nh7 {[%clk 0:01:05]} 18. Be2
{[%clk 0:00:57.2]} 18... Rfd8 {[%clk 0:00:28.2]} 19. Rhd1 {[%clk 0:00:48.4]}
19... Rxd6 {[%clk 0:00:28.8]} 20. Rxd6 {[%clk 0:00:48.5]} 20... Nf8 {[%clk
0:00:29.6]} 21. Na4 {[%clk 0:00:41.9]} 21... Rc8 {[%clk 0:00:14]} 22. Nc5 {[%clk
0:00:40.5]} 22... Ba8 {[%clk 0:00:14.7]} 23. b4 {[%clk 0:00:32.2]} 23... Ng6
{[%clk 0:00:14]} 24. g3 {[%clk 0:00:27.8]} 24... Ne5 {[%clk 0:00:10.5]} 25. a4
{[%clk 0:00:25.7]} 25... Rb8 {[%clk 0:00:08.5]} 26. c3 {[%clk 0:00:25.1]} 26...
Kf8 {[%clk 0:00:06.8]} 27. Rd7 {[%clk 0:00:18.9]} 1-0

[Event "Early-Titled-Tuesday-Blitz-October-24-2023"]
[Site "Chess.com"]
[Date "2023.10.24"]
[Round "4"]
[White "Martial2008"]
[Black "guillembaches"]
[Result "0-1"]
[WhiteElo "2646"]
[BlackElo "2494"]
[TimeControl "180+1"]
[EndTime "8:37:29 PDT"]
[Termination "guillembaches won by checkmate"]

1. d4 {[%clk 0:03:00.9]} 1... d5 {[%clk 0:03:00.4]} 2. Nf3 {[%clk 0:02:59.5]}
2... Nc6 {[%clk 0:03:00.5]} 3. Bf4 {[%clk 0:02:54.3]} 3... Bg4 {[%clk
0:03:00.4]} 4. e3 {[%clk 0:02:53.5]} 4... e6 {[%clk 0:03:00.5]} 5. Nbd2 {[%clk
0:02:53]} 5... Bd6 {[%clk 0:03:00.3]} 6. c3 {[%clk 0:02:50.9]} 6... f6 {[%clk
0:02:49.2]} 7. h3 {[%clk 0:02:49.1]} 7... Bh5 {[%clk 0:02:45.1]} 8. Bb5 {[%clk
0:02:41.8]} 8... Ne7 {[%clk 0:02:39.2]} 9. Bxd6 {[%clk 0:02:39.4]} 9... Qxd6
{[%clk 0:02:38.1]} 10. e4 {[%clk 0:02:38.3]} 10... O-O-O {[%clk 0:02:28.3]} 11.
Qe2 {[%clk 0:02:35.1]} 11... e5 {[%clk 0:02:23.5]} 12. g4 {[%clk 0:02:31.4]}
12... Bg6 {[%clk 0:02:15.6]} 13. dxe5 {[%clk 0:02:31.2]} 13... Nxe5 {[%clk
0:02:10]} 14. O-O-O {[%clk 0:02:15.6]} 14... Qb6 {[%clk 0:01:56.6]} 15. Nxe5
{[%clk 0:02:10.7]} 15... fxe5 {[%clk 0:01:56.6]} 16. Bd3 {[%clk 0:02:11.3]}
16... d4 {[%clk 0:01:50.8]} 17. cxd4 {[%clk 0:02:01.1]} 17... Rxd4 {[%clk
0:01:39]} 18. Nb3 {[%clk 0:01:59.8]} 18... Rb4 {[%clk 0:01:30.8]} 19. Bc2 {[%clk
0:01:55.9]} 19... Nc6 {[%clk 0:01:23.1]} 20. Qe3 {[%clk 0:01:49.7]} 20... Nd4
{[%clk 0:01:20.8]} 21. Nxd4 {[%clk 0:01:36.5]} 21... exd4 {[%clk 0:01:19.8]} 22.
Qa3 {[%clk 0:01:37]} 22... Re8 {[%clk 0:01:08.4]} 23. Rhe1 {[%clk 0:01:36.4]}
23... Re5 {[%clk 0:01:05.5]} 24. f4 {[%clk 0:01:33.9]} 24... Ra5 {[%clk
0:01:05.4]} 25. Qd3 {[%clk 0:01:11.5]} 25... Rxa2 {[%clk 0:00:59.5]} 26. b3
{[%clk 0:01:06.4]} 26... Qa5 {[%clk 0:00:52.5]} 27. f5 {[%clk 0:00:50.4]} 27...
Ra1+ {[%clk 0:00:36.5]} 28. Bb1 {[%clk 0:00:49.7]} 28... Bf7 {[%clk 0:00:29.2]}
29. e5 {[%clk 0:00:30.6]} 29... Bxb3 {[%clk 0:00:26]} 30. e6 {[%clk 0:00:24.5]}
30... Rc4+ {[%clk 0:00:23.7]} 31. Qxc4 {[%clk 0:00:17.2]} 31... Bxc4 {[%clk
0:00:23.3]} 32. Rd2 {[%clk 0:00:02.9]} 32... Qc3+ {[%clk 0:00:23.3]} 33. Rc2
{[%clk 0:00:03]} 33... Qxe1+ {[%clk 0:00:23.5]} 34. Kb2 {[%clk 0:00:03.9]} 34...
Qxb1# {[%clk 0:00:21.8]} 0-1

[Event "Early-Titled-Tuesday-Blitz-October-24-2023"]
[Site "Chess.com"]
[Date "2023.10.24"]
[Round "4"]
[White "Kildepiotr"]
[Black "lilleper1"]
[Result "0-1"]
[WhiteElo "2659"]
[BlackElo "2886"]
[TimeControl "180+1"]
[EndTime "8:37:37 PDT"]
[Termination "lilleper1 won by resignation"]

1. Nf3 {[%clk 0:02:54.8]} 1... Nf6 {[%clk 0:02:58.7]} 2. g3 {[%clk 0:02:54.8]}
2... c5 {[%clk 0:02:57.1]} 3. Bg2 {[%clk 0:02:55.3]} 3... Nc6 {[%clk 0:02:57.5]}
4. O-O {[%clk 0:02:56]} 4... e5 {[%clk 0:02:57.8]} 5. c4 {[%clk 0:02:55.5]} 5...
d5 {[%clk 0:02:55.8]} 6. cxd5 {[%clk 0:02:55]} 6... Nxd5 {[%clk 0:02:56.7]} 7.
Nc3 {[%clk 0:02:54.7]} 7... Be6 {[%clk 0:02:54.5]} 8. e3 {[%clk 0:02:50.9]} 8...
Nc7 {[%clk 0:02:39.3]} 9. b3 {[%clk 0:02:27.7]} 9... Be7 {[%clk 0:02:38.5]} 10.
Bb2 {[%clk 0:02:27.7]} 10... O-O {[%clk 0:02:38.1]} 11. Rc1 {[%clk 0:02:26.1]}
11... Qd3 {[%clk 0:02:18.4]} 12. Ne1 {[%clk 0:02:22.7]} 12... Qd7 {[%clk
0:02:17.2]} 13. f4 {[%clk 0:02:20.9]} 13... Rad8 {[%clk 0:02:11]} 14. Ne4 {[%clk
0:02:16.7]} 14... b6 {[%clk 0:02:05.9]} 15. fxe5 {[%clk 0:02:15.6]} 15... Bf5
{[%clk 0:01:37.6]} 16. Nf6+ {[%clk 0:01:51.2]} 16... Bxf6 {[%clk 0:01:21]} 17.
exf6 {[%clk 0:01:41]} 17... g6 {[%clk 0:01:20.5]} 18. Rxf5 {[%clk 0:01:05.5]}
18... gxf5 {[%clk 0:01:10.3]} 19. Qh5 {[%clk 0:01:05.4]} 19... Kh8 {[%clk
0:00:58.2]} 20. Nf3 {[%clk 0:01:03]} 20... Ne6 {[%clk 0:00:54]} 21. Qxf5 {[%clk
0:00:53.4]} 21... Rg8 {[%clk 0:00:49]} 22. Nh4 {[%clk 0:00:49.3]} 22... Qxd2
{[%clk 0:00:40]} 23. Be4 {[%clk 0:00:48.7]} 23... Ng5 {[%clk 0:00:32]} 24. Bc2
{[%clk 0:00:36.6]} 24... Qxe3+ {[%clk 0:00:27.5]} 25. Kh1 {[%clk 0:00:37.1]}
25... Nd4 {[%clk 0:00:26.9]} 26. Bxd4 {[%clk 0:00:36.3]} 26... Qxc1+ {[%clk
0:00:26.2]} 27. Bg1 {[%clk 0:00:34.1]} 27... Rd2 {[%clk 0:00:21.2]} 28. Be4
{[%clk 0:00:23.5]} 28... Rd1 {[%clk 0:00:20]} 29. Nf3 {[%clk 0:00:21.7]} 29...
Nxe4 {[%clk 0:00:18.4]} 30. Qxe4 {[%clk 0:00:21.5]} 30... Qh6 {[%clk 0:00:17.2]}
31. Qe5 {[%clk 0:00:16]} 31... Rdd8 {[%clk 0:00:15.2]} 32. Be3 {[%clk
0:00:14.4]} 32... Qg6 {[%clk 0:00:14.9]} 33. Kg2 {[%clk 0:00:12.7]} 33... Rde8
{[%clk 0:00:14.9]} 34. Qc3 {[%clk 0:00:11.4]} 34... Qe4 {[%clk 0:00:14.5]} 35.
Bf4 {[%clk 0:00:11.2]} 35... Rd8 {[%clk 0:00:14.7]} 36. Kf2 {[%clk 0:00:09.2]}
36... Rd3 {[%clk 0:00:14.8]} 0-1